bitfinex/quotes_SOLUSD_20250704
["timestamp","ask_amount","ask_price","bid_price","bid_amount"]
[1751668197279,7.7045868,147.93,147.91,10.59413683]
[1751668199488,7.7045868,147.93,147.9,10.59499778]
[1751668212113,7.7045868,147.93,147.9,6.76132521]
[1751668214794,7.7045868,147.93,147.9,10.59499778]
[1751668215806,7.7045868,147.93,147.9,9.7178767]
[1751668217102,8.89726057,147.92,147.88,6.76223965]
[1751668217299,5.06520385,147.91,147.88,10.59591222]
[1751668217484,5.06511473,147.91,147.88,10.59591222]
[1751668217683,5.06511473,147.92,147.88,10.59591222]
[1751668217884,11.53825937,147.93,147.88,10.59591222]
[1751668218086,8.8987845,147.92,147.88,10.59591222]
[1751668218285,5.06638242,147.91,147.88,10.59591222]
[1751668218482,8.90005499,147.91,147.86,10.5968269]
[1751668218695,8.90005499,147.9,147.86,10.5968269]
[1751668218890,3.83367257,147.9,147.86,6.76315433]
[1751668219094,3.83367257,147.89,147.86,6.76315433]
[1751668222288,5.06508623,147.9,147.87,3.83367257]
[1751668222514,3.83367257,147.91,147.87,3.83367257]
[1751668223209,92.73367257,147.92,147.87,3.83367257]
[1751668223510,5.06458975,147.91,147.87,3.83367257]
[1751668223712,3.83367257,147.91,147.87,10.59616855]
[1751668225600,3.83367257,147.91,147.87,3.83367257]
[1751668227616,3.83367257,147.91,147.87,10.59624128]
[1751668228014,3.83367257,147.91,147.87,6.76256871]
[1751668229518,8.89566282,147.91,147.87,6.76256871]
[1751668229754,8.89566282,147.91,147.86,10.59662611]
[1751668229916,8.89566282,147.91,147.87,3.83367257]
[1751668230322,8.89566282,147.91,147.86,6.76295354]
[1751668230509,8.89566282,147.91,147.87,3.83367257]
[1751668232030,8.89566282,147.91,147.85,6.76361176]
[1751668232212,8.89566282,147.91,147.87,3.83367257]
[1751668233114,5.06078007,147.91,147.87,10.59624198]
[1751668233411,8.89445264,147.91,147.87,10.59624198]
[1751668237027,8.89445264,147.91,147.87,6.76256941]
[1751668237733,5.06078007,147.91,147.87,6.76256941]
[1751668237929,8.89445264,147.91,147.87,6.76256941]
[1751668240945,88.9,147.92,147.9,3.83367257]
[1751668241150,0.1,147.94,147.91,3.83367257]
[1751668241316,5.05817944,147.93,147.91,3.83367257]
[1751668243240,0.1,147.94,147.91,10.59416353]
[1751668246738,8.99185201,147.94,147.9,6.76115269]
[1751668247037,3.93367257,147.94,147.9,6.76115269]
[1751668247238,8.99185201,147.94,147.9,6.76115269]
[1751668247436,0.1,147.94,147.91,3.83367257]
[1751668247624,5.15817944,147.94,147.91,3.83367257]
[1751668248642,5.15817944,147.94,147.92,6.76041103]
[1751668248848,0.1,147.94,147.92,6.76041103]
[1751668249940,0.1,147.94,147.92,10.5940836]
[1751668251233,0.1,147.94,147.92,6.76041103]
[1751668252340,5.15817944,147.94,147.92,6.76041103]
[1751668253042,5.15817944,147.94,147.89,23.66604933]
[1751668253338,5.15817944,147.94,147.91,3.83367257]
[1751668254240,5.15817944,147.94,147.92,6.76041103]
[1751668255640,5.15947186,147.94,147.92,6.76041103]
[1751668259448,5.15951726,147.94,147.92,6.76041103]
[1751668261356,0.1,147.94,147.92,6.76041103]
[1751668262356,5.15980567,147.94,147.92,6.76041103]
[1751668262529,0.1,147.94,147.92,6.76041103]
[1751668262731,5.15980567,147.94,147.92,6.76041103]
[1751668264357,0.1,147.94,147.92,6.76041103]
[1751668264561,5.15980567,147.94,147.92,6.76041103]
[1751668264770,0.1,147.94,147.92,6.76041103]
[1751668264930,5.15980567,147.94,147.92,6.76041103]
[1751668265125,0.1,147.94,147.92,6.76041103]
[1751668272158,5.16060243,147.94,147.92,6.76041103]
[1751668277867,5.16060243,147.94,147.92,3.83367257]
[1751668278074,0.1,147.94,147.92,3.83367257]
[1751668278251,5.16060243,147.94,147.92,3.83367257]
[1751668278448,0.1,147.94,147.92,3.83367257]
[1751668278651,5.16060243,147.94,147.92,3.83367257]
[1751668278851,0.1,147.94,147.92,10.59366062]
[1751668279056,5.16060243,147.94,147.92,10.59366062]
[1751668279349,0.1,147.94,147.92,10.59366062]
[1751668280083,0.1,147.94,147.93,3.83367257]
[1751668280248,1e-08,147.94,147.93,3.83367257]
[1751668281460,5.06090329,147.98,147.97,26.0]
[1751668281670,0.1,147.99,147.93,0.6759954]
[1751668281865,0.1,147.99,147.98,3.83367257]
[1751668282063,0.1,147.99,147.95,26.0]
[1751668282267,0.1,147.99,147.96,10.5918669]
[1751668283565,0.1,147.99,147.96,6.75819433]
[1751668283872,5.16003641,147.99,147.97,3.83367257]
[1751668284171,0.1,147.99,147.97,10.5913624]
[1751668284669,0.1,147.99,147.97,6.75768983]
[1751668285468,0.1,147.99,147.97,10.5913624]
[1751668288050,0.1,147.99,147.98,3.83367257]
[1751668290178,0.1,147.99,147.98,10.59134252]
[1751668293987,0.1,147.99,147.96,26.0]
[1751668293988,0.1,147.99,147.97,6.75799301]
[1751668294566,0.1,147.99,147.97,10.59166558]
[1751668299876,0.1,147.99,147.97,6.75799301]
[1751668300070,0.1,147.99,147.97,10.59166558]
[1751668300389,0.1,147.99,147.97,6.75799301]
[1751668301188,0.1,147.99,147.98,3.83367257]
[1751668301583,1e-08,147.99,147.98,3.83367257]
[1751668303190,1e-08,147.99,147.98,10.59134252]
[1751668303485,1e-08,148.0,147.98,55.24099138]
[1751668303685,1e-08,148.0,147.99,63.81801171]
[1751668303993,1e-08,148.0,147.99,48.48332143]
[1751668304288,1e-08,148.0,147.99,37.81801171]
[1751668304492,1e-08,148.0,147.99,22.48332143]
[1751668305082,1e-08,148.0,147.99,29.24053475]
[1751668308803,1e-08,148.0,147.99,36.59088589]
[1751668310482,1e-08,148.0,147.99,32.75721332]
[1751668310683,1e-08,148.0,147.99,36.59088589]
[1751668311894,1e-08,148.0,147.99,38.7409394]
[1751668312568,1e-08,148.0,147.99,32.75721332]
[1751668312768,1e-08,148.0,147.99,6.75721332]
[1751668313192,1e-08,148.0,147.99,12.7409394]
[1751668313569,1e-08,148.0,147.99,38.7409394]
[1751668327702,1e-08,148.0,147.99,38.05003567]
[1751668329203,0.1,148.06,148.03,18.64964886]
[1751668329399,0.1,148.06,148.05,5.98372608]
[1751668329798,0.1,148.06,148.05,31.98372608]
[1751668330097,0.1,148.06,148.04,26.0]
[1751668330301,0.1,148.06,148.04,31.98372608]
[1751668330810,0.1,148.06,148.04,26.0]
[1751668331510,0.1,148.06,148.05,6.75447483]
[1751668334613,0.1,148.06,148.05,12.73820091]
[1751668337119,0.1,148.06,148.05,38.73820091]
[1751668349528,0.1,148.06,148.05,32.75447483]
[1751668349858,0.1,148.06,148.05,36.58004781]
[1751668350630,1e-08,148.06,148.05,36.58004781]
[1751668354138,1e-08,148.06,148.05,10.58004781]
[1751668354638,1e-08,148.06,148.05,29.22969667]
[1751668356831,1e-08,148.06,148.05,34.74644419]
[1751668357223,500.1,148.12,148.08,26.0]
[1751668357424,500.1,148.12,148.11,3.82557298]
[1751668357831,500.1,148.12,148.11,5.97347139]
[1751668358029,500.1,148.12,148.1,5.97347139]
[1751668358336,500.1,148.12,148.11,6.75173857]
[1751668361940,500.1,148.12,148.1,5.97347139]
[1751668362838,500.1,148.12,148.09,23.63416179]
[1751668363035,500.1,148.12,148.1,5.97347139]
[1751668364144,500.1,148.12,148.11,6.75173857]
[1751668366239,500.1,148.12,148.09,23.63416179]
[1751668366542,500.1,148.12,148.1,5.97347139]
[1751668367041,465.3154322,148.12,148.11,31.97347139]
[1751668367348,430.46535781,148.12,148.11,31.97347139]
[1751668368336,430.46535781,148.12,148.11,38.72520996]
[1751668369051,430.46535781,148.12,148.11,32.75173857]
[1751668369346,430.46535781,148.12,148.11,38.72520996]
[1751668379758,430.46535781,148.12,148.11,32.75173857]
[1751668379960,430.46535781,148.12,148.11,36.57462755]
[1751668387965,430.46535781,148.12,148.11,32.75173857]
[1751668388163,430.46535781,148.12,148.11,6.75173857]
[1751668395053,430.46535781,148.12,148.1,6.75219446]
[1751668395255,430.46535781,148.12,148.1,10.57508344]
[1751668398570,430.46535781,148.12,148.1,6.75219446]
[1751668398778,430.46535781,148.12,148.1,10.57508344]
[1751668400878,430.46535781,148.12,148.1,6.75219446]
[1751668402281,430.46535781,148.12,148.1,10.57508344]
[1751668403786,430.46535781,148.12,148.1,6.75219446]
[1751668404487,430.46535781,148.12,148.1,10.57508344]
[1751668407587,430.46535781,148.12,148.11,3.82288898]
[1751668407778,430.46535781,148.12,148.1,6.75219446]
[1751668408089,430.46535781,148.12,148.11,3.82288898]
[1751668409783,430.46535781,148.12,148.11,10.57462755]
[1751668413891,430.46535781,148.12,148.11,6.75173857]
[1751668414077,430.46535781,148.12,148.11,10.57462755]
[1751668415195,430.46535781,148.12,148.11,6.75173857]
[1751668415390,430.46535781,148.12,148.11,3.82288898]
[1751668417895,430.46535781,148.12,148.11,10.57462755]
[1751668421299,430.46535781,148.12,148.11,3.82288898]
[1751668423910,430.46535781,148.12,148.11,10.57462755]
[1751668424593,430.46535781,148.12,148.11,6.75173857]
[1751668425402,430.46535781,148.12,148.11,3.82288898]
[1751668426508,430.46535781,148.12,148.11,10.57462755]
[1751668428608,430.46535781,148.12,148.1,6.75219446]
[1751668428811,430.46535781,148.12,148.11,3.82288898]
[1751668430813,430.46535781,148.12,148.1,6.75219446]
[1751668431110,430.46535781,148.12,148.11,10.57462755]
[1751668431314,396.4872322,148.12,148.11,10.57462755]
[1751668431516,396.4872322,148.12,148.11,6.75173857]
[1751668432803,396.4872322,148.12,148.1,6.75219446]
[1751668433918,396.4872322,148.12,148.1,26.0]
[1751668435923,396.4872322,148.12,148.11,10.57462755]
[1751668436221,396.4872322,148.12,148.11,36.57462755]
[1751668436803,396.4872322,148.12,148.11,32.75173857]
[1751668437022,396.4872322,148.12,148.11,36.57462755]
[1751668443334,396.4872322,148.12,148.11,32.75173857]
[1751668443531,396.4872322,148.12,148.11,36.57462755]
[1751668447330,396.4872322,148.12,148.11,32.75173857]
[1751668450035,396.4872322,148.12,148.11,36.57462755]
[1751668453931,396.4872322,148.12,148.11,32.75173857]
[1751668455302,396.4872322,148.12,148.11,36.57462755]
[1751668457831,325.49221179,148.12,148.11,89.56427641]
[1751668458033,291.58829483,148.12,148.11,89.56427641]
[1751668458528,222.65235711,148.12,148.11,89.56427641]
[1751668459932,149.22745054,148.12,148.11,89.56427641]
[1751668460234,112.7274446,148.12,148.11,89.56427641]
[1751668460438,76.7321003,148.12,148.11,89.56427641]
[1751668465940,76.7321003,148.12,148.11,67.09173857]
[1751668466342,76.7321003,148.12,148.11,70.91462755]
[1751668466854,76.7321003,148.12,148.11,36.57462755]
[1751668468128,76.7321003,148.12,148.11,32.75173857]
[1751668470435,76.7321003,148.12,148.11,36.57462755]
[1751668472352,76.7321003,148.12,148.11,32.75173857]
[1751668472552,76.7321003,148.12,148.11,36.57462755]
[1751668472846,76.7321003,148.12,148.11,32.75173857]
[1751668473044,76.7321003,148.12,148.11,36.57462755]
[1751668480755,76.7321003,148.12,148.11,55.22427641]
[1751668484163,76.7321003,148.12,148.11,32.75173857]
[1751668484367,76.7321003,148.12,148.11,36.57462755]
[1751668485272,76.7321003,148.12,148.11,32.75173857]
[1751668485562,0.1,148.12,148.11,32.75173857]
[1751668485738,0.1,148.12,148.11,36.57462755]
[1751668485938,0.1,148.12,148.11,32.75173857]
[1751668487444,0.1,148.12,148.11,36.57462755]
[1751668488359,0.1,148.12,148.11,32.75173857]
[1751668488563,0.1,148.12,148.11,36.57462755]
[1751668489766,0.1,148.12,148.11,32.75173857]
[1751668491063,0.1,148.12,148.11,36.57462755]
[1751668492843,0.1,148.12,148.11,32.75173857]
[1751668493159,0.1,148.12,148.11,36.57462755]
[1751668494164,0.1,148.12,148.11,32.75173857]
[1751668494464,0.1,148.12,148.11,36.57462755]
[1751668503270,0.1,148.12,148.11,32.75173857]
[1751668503470,0.1,148.12,148.11,36.57462755]
[1751668505654,0.1,148.12,148.11,32.75173857]
[1751668505855,0.1,148.12,148.11,36.57462755]
[1751668506477,0.1,148.12,148.11,32.75173857]
[1751668506657,0.1,148.12,148.11,36.57462755]
[1751668509373,0.1,148.12,148.11,32.75173857]
[1751668509577,0.1,148.12,148.11,36.57462755]
[1751668512175,0.1,148.12,148.11,32.75173857]
[1751668513489,0.1,148.12,148.11,36.57462755]
[1751668515380,0.1,148.12,148.11,32.75173857]
[1751668515958,0.1,148.12,148.11,36.57462755]
[1751668516886,0.1,148.12,148.11,32.75173857]
[1751668518882,1e-08,148.12,148.11,51.40138743]
[1751668519080,1e-08,148.12,148.11,55.22427641]
[1751668519661,1e-08,148.12,148.11,89.76427641]
[1751668523779,1e-08,148.12,148.11,85.94138743]
[1751668524096,1e-08,148.12,148.11,89.76427641]
[1751668525972,1e-08,148.12,148.11,85.94138743]
[1751668526193,1e-08,148.12,148.11,89.76427641]
[1751668527878,1e-08,148.12,148.11,85.94138743]
[1751668528079,1e-08,148.12,148.11,89.76427641]
[1751668531797,1e-08,148.12,148.11,85.94138743]
[1751668531998,1e-08,148.12,148.11,89.76427641]
[1751668539207,1e-08,148.12,148.11,85.94138743]
[1751668539390,1e-08,148.12,148.11,63.76427641]
[1751668554601,1e-08,148.12,148.11,212.66427641]
[1751668555418,6.2776,148.18,148.15,44.64964886]
[1751668555615,0.1,148.18,148.17,3.82288898]
[1751668556434,0.1,148.18,148.17,36.5718935]
[1751668561342,6.2118,148.21,148.17,53.4444048]
[1751668561552,0.1,148.24,148.22,3.82288898]
[1751668561726,0.1,148.24,148.21,18.64964886]
[1751668561727,0.1,148.24,148.23,3.82288898]
[1751668562231,0.1,148.24,148.21,53.04964886]
[1751668562428,0.1,148.24,148.23,3.82288898]
[1751668562641,0.1,148.24,148.22,26.0]
[1751668562838,8.3109,148.24,148.22,26.0]
[1751668563658,8.3109,148.24,148.23,6.74627268]
[1751668564231,8.3109,148.24,148.21,6.74718305]
[1751668565533,8.3109,148.24,148.21,27.43802965]
[1751668565728,8.3109,148.24,148.23,29.82288898]
[1751668567059,8.3109,148.24,148.23,36.56916166]
[1751668567356,0.1,148.24,148.23,36.56916166]
[1751668570756,1e-08,148.24,148.23,55.21881052]
[1751668571744,5.16267245,148.26,148.23,50.28658165]
[1751668571745,1e-08,148.26,148.23,50.28658165]
[1751668571954,1e-08,148.26,148.25,18.64964886]
[1751668572158,1e-08,148.26,148.25,22.47253784]
[1751668573154,1e-08,148.26,148.25,29.2179004]
[1751668577561,1e-08,148.26,148.25,36.56825154]
[1751668585192,1e-08,148.26,148.25,55.2179004]
[1751668588594,1e-08,148.26,148.25,29.2179004]
[1751668588797,7.9938,148.35,148.29,22.47253784]
[1751668588998,7.9938,148.35,148.32,3.82288898]
[1751668589176,7.9938,148.35,148.31,3.82288898]
[1751668589376,11.81668898,148.35,148.31,3.82288898]
[1751668590324,3.82288898,148.33,148.29,6.74354305]
[1751668590503,7.9938,148.35,148.29,6.74354305]
[1751668590716,3.82288898,148.32,148.29,6.74354305]
[1751668591128,7.9938,148.3,148.28,32.74380825]
[1751668595097,7.9938,148.3,148.28,26.0]
[1751668596398,7.9938,148.3,148.28,32.74386529]
[1751668598225,7.9938,148.3,148.28,38.70501761]
[1751668598424,7.9938,148.3,148.29,5.96115232]
[1751668598640,13.73245232,148.34,148.29,5.96115232]
[1751668600335,13.73245232,148.34,148.3,6.74308833]
[1751668601220,13.73245232,148.34,148.3,12.70424065]
[1751668603329,13.73245232,148.34,148.29,6.74354305]
[1751668603535,13.73245232,148.34,148.3,5.96115232]
[1751668604121,7.7713,148.34,148.3,5.96115232]
[1751668604540,7.7713,148.34,148.31,6.74263367]
[1751668604731,13.73245232,148.34,148.31,6.74263367]
[1751668605362,7.7713,148.34,148.31,6.74263367]
[1751668605549,13.73245232,148.34,148.31,6.74263367]
[1751668605742,7.7713,148.34,148.31,6.74263367]
[1751668606649,13.73245232,148.34,148.31,6.74263367]
[1751668606855,7.7713,148.34,148.31,6.74263367]
[1751668607644,7.7713,148.34,148.29,6.74354305]
[1751668607850,7.7713,148.34,148.3,5.96115232]
[1751668609065,7.7713,148.34,148.3,12.70379078]
[1751668609269,7.7713,148.34,148.3,6.74263846]
[1751668609566,0.1,148.41,148.35,26.0]
[1751668609863,5.13944658,148.41,148.37,5.96115232]
[1751668610370,5.96115232,148.39,148.35,26.0]
[1751668610747,5.03944658,148.4,148.35,26.0]
[1751668610944,11.1005989,148.41,148.36,5.96115232]
[1751668611154,0.1,148.41,148.37,6.73990698]
[1751668611445,6.06115232,148.4,148.37,6.73990698]
[1751668611753,5.96115232,148.39,148.37,6.73990698]
[1751668612068,0.1,148.4,148.37,6.73990698]
[1751668612256,6.06115232,148.4,148.37,6.73990698]
[1751668614789,0.1,148.4,148.37,6.73990698]
[1751668614980,6.06115232,148.4,148.37,6.73990698]
[1751668615184,6.06115232,148.4,148.36,6.7402305]
[1751668616996,6.06115232,148.4,148.36,12.70138282]
[1751668618181,0.1,148.4,148.36,12.70138282]
[1751668618384,6.06115232,148.4,148.36,12.70138282]
[1751668619098,6.06115232,148.4,148.36,6.7402305]
[1751668619297,6.06115232,148.4,148.36,12.70138282]
[1751668619991,5.96115232,148.39,148.36,6.7402305]
[1751668621902,3.81056615,148.39,148.36,6.7402305]
[1751668625995,0.1,148.4,148.36,6.7402305]
[1751668626203,3.81056615,148.39,148.36,6.7402305]
[1751668626798,0.1,148.4,148.36,6.7402305]
[1751668626799,3.91056615,148.4,148.36,6.7402305]
[1751668629208,0.1,148.4,148.38,3.81056615]
[1751668630600,3.81056615,148.39,148.36,6.7402305]
[1751668631587,3.81056615,148.38,148.35,32.74066468]
[1751668631788,5.95509159,148.38,148.35,32.74066468]
[1751668634710,8.2178,148.4,148.35,32.74066468]
[1751668634908,5.95509159,148.38,148.35,32.74066468]
[1751668635214,8.2178,148.4,148.35,32.74066468]
[1751668635518,5.95509159,148.39,148.35,38.69575627]
[1751668635811,14.17289159,148.4,148.35,38.69575627]
[1751668638118,12.50829159,148.4,148.35,38.69575627]
[1751668638616,0.1,148.4,148.37,5.95509159]
[1751668640006,5.03093903,148.43,148.38,1.5875]
[1751668640329,5.95509159,148.45,148.4,5.95509159]
[1751668640622,5.95509159,148.45,148.41,6.73809042]
[1751668640808,5.95509159,148.44,148.41,6.73809042]
[1751668641494,9.6028978,148.47,148.41,38.69318201]
[1751668641792,5.95509159,148.45,148.41,38.69318201]
[1751668641994,10.9863826,148.46,148.41,38.69318201]
[1751668645343,5.95509159,148.44,148.41,6.73809042]
[1751668645644,5.95509159,148.45,148.41,6.73809042]
[1751668646341,5.95509159,148.45,148.41,12.69318201]
[1751668647643,5.03129101,148.46,148.41,12.69318201]
[1751668647830,5.95509159,148.45,148.41,12.69318201]
[1751668648244,5.95509159,148.45,148.4,23.58475552]
[1751668648445,5.95509159,148.45,148.4,29.53984711]
[1751668650142,10.9863826,148.46,148.42,5.95509159]
[1751668650352,10.9863826,148.46,148.41,31.95509159]
[1751668650549,5.95509159,148.46,148.41,31.95509159]
[1751668650952,12.4193804,148.47,148.43,31.95509159]
[1751668651156,5.95509159,148.46,148.43,26.0]
[1751668651742,1.4329978,148.47,148.43,26.0]
[1751668651941,5.95509159,148.45,148.4,23.58475552]
[1751668652145,5.95509159,148.45,148.42,6.73763643]
[1751668655448,17.4504826,148.46,148.42,12.69272802]
[1751668656359,11.49539101,148.46,148.42,12.69272802]
[1751668656551,12.4193804,148.47,148.43,5.95509159]
[1751668657361,7.38808939,148.47,148.43,5.95509159]
[1751668657752,12.4193804,148.47,148.44,6.73672864]
[1751668657950,7.38808939,148.47,148.44,6.73672864]
[1751668658162,1.4329978,148.47,148.44,6.73672864]
[1751668658367,7.38808939,148.47,148.44,6.73672864]
[1751668658738,12.4193804,148.47,148.44,6.73672864]
[1751668659165,7.38808939,148.47,148.44,6.73672864]
[1751668660062,1.4329978,148.47,148.44,29.53364184]
[1751668660238,1.4329978,148.47,148.45,5.95509159]
[1751668661041,1.4329978,148.47,148.46,6.73582109]
[1751668663156,1.4329978,148.47,148.45,6.73627484]
[1751668676678,1.4329978,148.47,148.44,23.57855025]
[1751668676879,1.4329978,148.47,148.44,29.53364184]
[1751668677673,1.4329978,148.47,148.45,5.95509159]
[1751668678073,1.4329978,148.47,148.44,23.57855025]
[1751668678265,1.4329978,148.47,148.45,5.95509159]
[1751668678774,1.4329978,148.47,148.46,6.73582109]
[1751668680478,1.4329978,148.47,148.46,12.69091268]
[1751668681181,1.4329978,148.47,148.46,6.73582109]
[1751668681781,1.4329978,148.47,148.46,10.54104915]
[1751668681980,1.4329978,148.47,148.44,23.57855025]
[1751668682154,1.4329978,148.47,148.46,29.80522806]
[1751668683285,1.4329978,148.47,148.46,36.54104915]
[1751668683991,1.4329978,148.47,148.46,6.73582109]
[1751668684882,1.4329978,148.47,148.46,10.54104915]
[1751668685059,1.4329978,148.47,148.46,6.73582109]
[1751668685261,1.4329978,148.47,148.46,10.54104915]
[1751668689883,1.4329978,148.47,148.46,12.68076422]
[1751668691871,1.4329978,148.47,148.46,12.18076422]
[1751668695496,1.4329978,148.47,148.46,32.23582109]
[1751668695872,1.4329978,148.47,148.46,38.18076422]
[1751668697489,1.4329978,148.47,148.46,32.23582109]
[1751668698287,1.4329978,148.47,148.46,38.18076422]
[1751668699905,1.4329978,148.47,148.46,6.23582109]
[1751668701286,1.4329978,148.47,148.45,12.68121797]
[1751668702894,7.37794093,148.47,148.41,16.84465068]
[1751668703218,5.04298288,148.46,148.41,16.84465068]
[1751668703416,5.04298288,148.46,148.42,38.68257956]
[1751668703600,5.04298288,148.46,148.42,32.73763643]
[1751668703795,10.98792601,148.46,148.42,6.73763643]
[1751668704008,5.94494313,148.45,148.42,6.73763643]
[1751668704814,5.04298288,148.46,148.42,6.73763643]
[1751668705029,5.94494313,148.45,148.42,6.73763643]
[1751668705215,10.98792601,148.46,148.42,5.94494313]
[1751668705393,10.98792601,148.46,148.41,32.73809042]
[1751668705693,10.98792601,148.46,148.42,5.94494313]
[1751668705988,5.94494313,148.45,148.41,38.68303355]
[1751668707620,5.04298288,148.46,148.41,38.68303355]
[1751668707820,10.98792601,148.46,148.41,38.68303355]
[1751668708318,10.98792601,148.46,148.41,32.73809042]
[1751668708618,5.04298288,148.46,148.41,38.68303355]
[1751668708819,5.94494313,148.45,148.41,38.68303355]
[1751668709514,5.04298288,148.46,148.41,38.68303355]
[1751668709716,5.94494313,148.45,148.41,38.68303355]
[1751668709906,3.80736235,148.45,148.41,36.54545277]
[1751668710105,3.80736235,148.45,148.41,32.73809042]
[1751668710301,3.80736235,148.45,148.41,36.54545277]
[1751668710606,8.85034523,148.46,148.41,36.54545277]
[1751668710812,8.85034523,148.46,148.42,3.80736235]
[1751668712300,8.85034523,148.46,148.43,6.73718251]
[1751668713195,5.04298288,148.46,148.45,3.80736235]
[1751668713401,1.4329978,148.47,148.45,3.80736235]
[1751668714215,1.4329978,148.47,148.43,23.58013878]
[1751668714411,1.4329978,148.47,148.45,3.80736235]
[1751668715520,1.4329978,148.47,148.46,6.73582109]
[1751668717499,1.4329978,148.47,148.43,16.84295627]
[1751668717822,1.4329978,148.47,148.45,3.80736235]
[1751668718021,1.4329978,148.47,148.43,16.84295627]
[1751668718331,1.4329978,148.47,148.45,3.80736235]
[1751668720316,1.4329978,148.47,148.46,6.73582109]
[1751668726036,1.4329978,148.47,148.46,10.54318344]
[1751668727653,1.4329978,148.47,148.46,6.73582109]
[1751668727853,1.4329978,148.47,148.46,10.54318344]
[1751668734646,1.4329978,148.47,148.46,3.80736235]
[1751668736449,0.1,148.51,148.46,54.88363618]
[1751668736639,0.1,148.51,148.5,3.80736235]
[1751668738055,0.1,148.51,148.5,10.54136908]
[1751668739552,0.1,148.51,148.48,16.83701825]
[1751668739764,0.1,148.51,148.5,3.80736235]
[1751668740564,0.1,148.51,148.5,10.54136908]
[1751668743967,0.1,148.51,148.5,3.80736235]
[1751668745966,0.1,148.51,148.5,10.54136908]
[1751668746969,3.80736235,148.54,148.5,10.54136908]
[1751668748450,4.20264138,148.55,148.5,10.54136908]
[1751668748858,3.80736235,148.54,148.5,10.54136908]
[1751668749963,4.20264138,148.55,148.48,16.83701825]
[1751668750173,3.80736235,148.54,148.48,16.83701825]
[1751668750348,3.80736235,148.54,148.5,3.80736235]
[1751668750770,4.20264138,148.55,148.5,3.80736235]
[1751668751065,3.80736235,148.54,148.5,3.80736235]
[1751668751259,4.20264138,148.55,148.51,6.73355329]
[1751668751442,3.80736235,148.54,148.51,6.73355329]
[1751668752469,4.20264138,148.55,148.51,10.54091564]
[1751668752653,4.20264138,148.55,148.52,3.80736235]
[1751668753067,4.20264138,148.55,148.51,10.54091564]
[1751668754170,8.01000373,148.55,148.51,6.73355329]
[1751668754373,8.01000373,148.55,148.51,10.54091564]
[1751668755359,7.01000373,148.55,148.51,10.54091564]
[1751668755870,3.20264138,148.55,148.51,10.54091564]
[1751668756374,3.20264138,148.55,148.54,3.80736235]
[1751668756759,3.20264138,148.55,148.51,23.56743653]
[1751668756966,3.20264138,148.55,148.54,3.80736235]
[1751668757270,3.20264138,148.55,148.54,6.73219334]
[1751668759870,3.20264138,148.55,148.54,3.80736235]
[1751668760255,3.20264138,148.55,148.51,16.83388324]
[1751668760459,3.20264138,148.55,148.54,3.80736235]
[1751668761670,3.20264138,148.55,148.51,16.83388324]
[1751668761879,3.20264138,148.55,148.54,10.53955569]
[1751668763984,3.20264138,148.55,148.54,6.73219334]
[1751668764193,3.20264138,148.55,148.53,3.80736235]
[1751668765099,3.20264138,148.55,148.54,36.53955569]
[1751668771908,3.20264138,148.55,148.54,32.73219334]
[1751668772080,3.20264138,148.55,148.54,36.53955569]
[1751668774912,3.20264138,148.55,148.52,10.54046226]
[1751668776212,3.20264138,148.55,148.52,6.73309991]
[1751668777713,3.20264138,148.55,148.52,10.54046226]
[1751668778589,3.20264138,148.55,148.53,3.80736235]
[1751668780109,2.20264138,148.55,148.53,3.80736235]
[1751668781309,2.20264138,148.55,148.54,6.73219334]
[1751668787615,2.20264138,148.55,148.53,6.7326466]
[1751668789911,2.20264138,148.55,148.52,6.73309991]
[1751668790209,2.20264138,148.55,148.52,10.54046226]
[1751668790393,2.20264138,148.55,148.52,6.73309991]
[1751668790589,2.20264138,148.55,148.52,10.54046226]
[1751668799723,6.01000373,148.55,148.49,6.73446023]
[1751668800026,3.80736235,148.52,148.49,6.73446023]
[1751668800231,5.05088215,148.51,148.49,6.73446023]
[1751668800439,8.8582445,148.5,148.48,0.2]
[1751668800642,5.05088215,148.49,148.48,0.2]
[1751668800826,8.8582445,148.49,148.48,0.2]
[1751668801447,5.05088215,148.49,148.48,0.2]
[1751668801623,5.05088215,148.49,148.48,6.93491379]
[1751668802024,1.5186,148.52,148.48,6.93491379]
[1751668802224,8.85199454,148.51,148.48,6.93491379]
[1751668802437,3.80736235,148.51,148.48,6.93491379]
[1751668803131,3.80736235,148.5,148.48,6.93491379]
[1751668803825,8.84753879,148.51,148.48,6.93491379]
[1751668804027,3.80736235,148.5,148.48,6.93491379]
[1751668804432,3.80736235,148.49,148.48,0.2]
[1751668804928,8.84581427,148.49,148.48,0.2]
[1751668805331,3.80736235,148.49,148.48,0.2]